[Event "Paracin Open 2022"]
[Site "Paracin"]
[Date "2022.07.09"]
[Round "3.13"]
[White "Urazayev, Arystanbek"]
[Black "Arpita, Mukherjee"]
[Result "1-0"]
[ECO "B90"]
[WhiteElo "2430"]
[BlackElo "2281"]
[Annotator "RC"]
[PlyCount "69"]
[EventDate "2022.07.08"]
[EventCountry "SRB"]
[SourceTitle "playchess.com"]
[Source "ChessBase"]
[SourceQuality "1"]
[TimeControl "5400+30"]

1. e4 {[%emt 0:00:33]} c5 {[%emt 0:01:01]} 2. Nf3 {[%emt 0:00:10]} d6 {[%emt 0:00:10]} 3. d4 {[%emt 0:00:09]} cxd4 {[%emt 0:00:12]} 4. Nxd4 {[%emt 0:00:06]} Nf6 {[%emt 0:00:06]} 5. Nc3 {[%emt 0:00:06]} a6 {[%emt 0:00:08]} 6. a3 {[%emt 0:01:17]} g6 {[%emt 0:00:26]} 7. f3 {[%emt 0:00:09]} Bg7 {[%emt 0:00:08]} 8. Be3 {[%emt 0:00:04]} Nc6 {[%emt 0:00:20]} 9. Qd2 {[%emt 0:00:10]} O-O {[%emt 0:03:13]} 10. O-O-O {[%emt 0:00:09]} d5 {[%emt 0:01:52]} 11. exd5 {[%emt 0:00:40]} Nxd5 {[%emt 0:00:24]} 12. Nxc6 {[%emt 0:00:52]} bxc6 {[%emt 0:00:04]} 13. Bd4 {[%emt 0:00:32]} e5 {[%emt 0:04:31]} 14. Bc5 {[%emt 0:00:30]} Be6 {[%emt 0:01:13]} 15. Ne4 {[%emt 0:01:04]} Re8 {[%emt 0:11:17]} 16. h4 {[%emt 0:01:18]} Qb8 {[%emt 0:06:18]} 17. g4 {[%emt 0:30:13]} Nf6 {[%emt 0:08:21]} 18. g5 {[%emt 0:03:20]} Nh5 {[%emt 0:05:47]} 19. Qc3 {[%emt 0:11:02]} Bd5 {[%emt 0:04:07]} 20. Bc4 {[%emt 0:03:45]} Nf4 {[%emt 0:11:58]} 21. Rhe1 {[%emt 0:02:03]} Re6 {[%emt 0:13:33]} 22. Kb1 {[%emt 0:02:06]} Qb7 {[%emt 0:10:06]} 23. Bf1 {[%emt 0:01:57]} Rd8 {[%emt 0:02:19]} 24. Qb4 {[%emt 0:07:23]} Qc8 {[%emt 0:04:31]} 25. Qb6 {[%emt 0:02:32]} Ree8 {[%emt 0:00:34]} 26. Qxa6 {[%emt 0:04:27]} Bxe4 {[%emt 0:03:07]} 27. fxe4 {[%emt 0:06:03]} Rxd1+ {[%emt 0:02:04]} 28. Rxd1 {[%emt 0:00:04]} Qg4 {[%emt 0:00:04]} 29. Rd2 {[%emt 0:06:23]} Qxh4 {[%emt 0:04:00]} 30. Qxc6 {[%emt 0:01:54]} Qe1+ {[%emt 0:00:19]} 31. Ka2 {[%emt 0:00:01]} Rf8 {[%emt 0:00:20]} 32. Rf2 {[%emt 0:02:07]} Ne6 {[%emt 0:00:45]} 33. Bc4 {[%emt 0:01:24]} Nxc5 {[%emt 0:00:48]} 34. Rxf7 {[%emt 0:01:43]} Qxe4 {[%emt 0:02:46]} 35. Rf4+ {[%emt 0:00:35]} 1-0

[Event "Paracin Open 2022"]
[Site "Paracin"]
[Date "2022.07.09"]
[Round "3.14"]
[White "Petrov, Nikita"]
[Black "Ibadov, Dashgyn"]
[Result "1/2-1/2"]
[ECO "E07"]
[WhiteElo "2558"]
[BlackElo "2262"]
[Annotator "TA"]
[PlyCount "65"]
[EventDate "2022.07.08"]
[EventCountry "SRB"]
[SourceTitle "playchess.com"]
[Source "ChessBase"]
[SourceQuality "1"]
[TimeControl "5400+30"]

{[%evp 14,65,18,0,0,0,0,-10,-4,-8,-9,-13,-13,-7,1,0,27,30,22,18,17,12,22,0,-2,10,10,16,36,37,39,39,46,9,14,4,8,8,8,8,8,8,8,0,7,0,0,0,0,0,0,0,0,0]} 1. d4 {[%emt 0:00:03]} d5 {[%emt 0:00:16]} 2. c4 {[%emt 0:00:17]} e6 {[%emt 0:00:28]} 3. Nf3 {[%emt 0:00:26]} c6 {[%emt 0:00:53]} 4. g3 {[%emt 0:00:36]} Nf6 {[%emt 0:00:07]} 5. Bg2 {[%emt 0:00:18]} Be7 {[%emt 0:00:11]} 6. O-O {[%emt 0:01:44]} O-O {[%emt 0:00:08]} 7. Nc3 {[%emt 0:00:59]} Nbd7 {[%emt 0:03:48]} 8. Nd2 {[%emt 0:08:25]} b5 {[%emt 0:18:39] E07: Closed Catalan: Main Line (5 Nf3 0-0 6 0-0 Nbd7).} 9. cxb5 {[%emt 0:09:50]} cxb5 {[%emt 0:00:04]} 10. Nxb5 {[%emt 0:04:35]} Qb6 {[%emt 0:00:10]} 11. a4 {[%emt 0:04:10] [#]} a6 $146 {[%emt 0:00:47]} ({Predecessor:} 11... Ba6 12. e3 Bxb5 13. axb5 Qxb5 14. g4 Rfc8 15. g5 Ne8 16. h4 {½-½ (32) Kachiani Gersinska,K (2371)-Bojkovic,N (2420) Dresden 2008}) 12. Nc3 {[%emt 0:00:08]} Qxd4 {[%emt 0:00:09]} 13. e4 {[%emt 0:00:46]} Nc5 {[%emt 0:15:05]} 14. exd5 {[%emt 0:06:12]} exd5 {[%emt 0:02:00] [#]} (14... Nxd5 $5 {[%cal Rc8b7]} 15. Nc4 Qxd1 16. Rxd1 Nb3 $11) 15. Nde4 $1 {[%emt 0:02:17]} Qxd1 {[%emt 0:05:01]} 16. Nxf6+ {[%emt 0:00:05]} Bxf6 {[%emt 0:00:03]} 17. Rxd1 {[%emt 0:00:07]} ({Don't play} 17. Nxd1 Be6 18. Ra3 Rac8 $17) 17... Bg4 {[%emt 0:25:38]} 18. f3 {[%emt 0:13:41]} Be6 {[%emt 0:01:46] [#] Strongly threatening ...Nb3.} 19. Nxd5 {[%emt 0:00:27]} Bxd5 {[%emt 0:00:34]} 20. Rxd5 {[%emt 0:00:05]} Nb3 {[%emt 0:00:06]} 21. Rb1 {[%emt 0:00:04]} Nxc1 {[%emt 0:00:46]} 22. Rxc1 {[%emt 0:00:05]} Bxb2 {[%emt 0:02:54]} 23. Rc6 {[%emt 0:05:32]} a5 {[%emt 0:04:40] The position is equal.} 24. Rcc5 {[%emt 0:01:15]} Rfc8 {[%emt 0:03:50]} 25. Rxc8+ {[%emt 0:02:37]} Rxc8 {[%emt 0:00:01]} 26. Rxa5 $11 {[%emt 0:03:53][%mdl 4096] Endgame KRB-KRB} Bd4+ {[%emt 0:02:50]} 27. Kf1 {[%emt 0:00:07]} g6 {[%emt 0:00:07]} 28. Rd5 {[%emt 0:05:47]} Rc1+ {[%emt 0:00:58]} 29. Ke2 {[%emt 0:00:04]} Bg1 {[%emt 0:01:46]} 30. Rd1 {[%emt 0:07:00]} Rxd1 {[%emt 0:01:14]} 31. Kxd1 {[%emt 0:00:21]} Bxh2 {[%emt 0:00:02]} 32. g4 $1 {[%emt 0:00:13]} Bc7 {[%emt 0:00:49]} 33. Bf1 {[%emt 0:00:40] Weighted Error Value: White=0.06 (flawless) /Black=0.03 (flawless)} 1/2-1/2

[Event "Paracin Open 2022"]
[Site "Paracin"]
[Date "2022.07.09"]
[Round "3.15"]
[White "Taspinar, Yanki"]
[Black "Santiago, Yago De Moura"]
[Result "1-0"]
[ECO "D91"]
[WhiteElo "2311"]
[BlackElo "2513"]
[Annotator "TA"]
[PlyCount "39"]
[EventDate "2022.07.08"]
[EventCountry "SRB"]
[SourceTitle "playchess.com"]
[Source "ChessBase"]
[SourceQuality "1"]
[TimeControl "5400+30"]

{[%evp 15,39,0,0,0,0,-8,0,0,274,262,293,269,438,435,398,334,463,452,956,920,1006,976,1020,1012,809,751]} 1. d4 {[%emt 0:00:03]} Nf6 {[%emt 0:00:16]} 2. c4 {[%emt 0:00:04]} g6 {[%emt 0:00:56]} 3. Nc3 {[%emt 0:00:05]} d5 {[%emt 0:00:09]} 4. Nf3 {[%emt 0:00:06]} Bg7 {[%emt 0:00:20]} 5. Bg5 {[%emt 0:00:12]} dxc4 {[%emt 0:02:12]} 6. e4 {[%emt 0:10:11][%cal Be2e4,Be4e5][%mdl 32]} c5 {[%emt 0:01:13]} 7. d5 {[%emt 0:00:10][%cal Bd4d5,Bd5d6][%mdl 32]} b5 {[%emt 0:00:18]} 8. d6 {[%emt 0:00:06]} Bb7 $1 {[%emt 0:05:02]} 9. e5 {[%emt 0:17:33] D91: Grünfeld: 4 Nf3 Bg7 5 Bg5.} Ne4 {[%emt 0:03:51]} 10. Nxe4 {[%emt 0:09:52]} Bxe4 {[%emt 0:00:31]} 11. a4 {[%emt 0:06:34][%cal Ba2a4,Ba4b5][%mdl 32] The position is equal.} Nc6 $2 {[%emt 0:11:59][%mdl 8192] [#]} (11... a6 $1 $11 {and Black stays safe.}) 12. axb5 $18 {[%emt 0:06:12]} Bxf3 {[%emt 0:01:34]} 13. gxf3 {[%emt 0:15:36]} Nxe5 {[%emt 0:01:56] [#]} (13... Nd4 14. Bxe7 (14. dxe7 Qd5 $15) 14... Qd7) 14. Bxe7 $146 {[%emt 0:00:24]} ({Predecessor:} 14. f4 Nd3+ 15. Bxd3 cxd3 16. Bxe7 Qd7 17. Qxd3 Bxb2 18. Ra4 Bd4 19. Rxd4 cxd4 20. Qxd4 Qe6+ 21. Kd2 Qa2+ 22. Ke3 Qb3+ 23. Kd2 Qa2+ 24. Ke3 Qb3+ 25. Kd2 {½-½ (25) Dittmar,P (2303)-Zuse,P (2262) Bad Woerishofen 2014}) 14... Qd7 {[%emt 0:09:11]} 15. Qd5 {[%emt 0:12:03]} Rd8 {[%emt 0:08:24] [#] And now ...Qxe7 would win.} 16. Bxc4 {[%emt 0:02:52] White is clearly winning.} ({Don't do} 16. Bxd8 Qxd8 17. f4 c3) 16... Nxc4 {[%emt 0:11:40]} (16... Qxe7 $142 17. dxe7 Rxd5 18. Bxd5 Kxe7) 17. Qxc4 {[%emt 0:00:38] Strongly threatening 0-0.} Be5 {[%emt 0:02:08]} 18. Qe4 {[%emt 0:06:08]} f6 {[%emt 0:01:40]} 19. Bxf6 {[%emt 0:00:51]} O-O {[%emt 0:00:09]} 20. Qd5+ {[%emt 0:01:25] Black got outplayed after the opening.  Weighted Error Value: White=0.08 (flawless) /Black=0.71} 1-0

[Event "Paracin Open 2022"]
[Site "Paracin"]
[Date "2022.07.09"]
[Round "3.16"]
[White "Vishwa Vasnawala"]
[Black "Gundavaa, Bayarsaikhan"]
[Result "1/2-1/2"]
[ECO "D12"]
[WhiteElo "2305"]
[BlackElo "2503"]
[Annotator "TA"]
[PlyCount "40"]
[EventDate "2022.07.08"]
[EventCountry "SRB"]
[SourceTitle "playchess.com"]
[Source "ChessBase"]
[SourceQuality "1"]
[TimeControl "5400+30"]

{[%evp 15,40,24,35,29,38,6,7,11,8,0,11,27,43,0,0,0,58,18,53,21,35,0,0,0,0,0,0]} 1. d4 {[%emt 0:00:02]} Nf6 {[%emt 0:00:46]} 2. c4 {[%emt 0:00:05]} c6 {[%emt 0:04:45]} 3. Nf3 {[%emt 0:01:14]} d5 {[%emt 0:00:10]} 4. e3 {[%emt 0:00:06]} Bf5 {[%emt 0:01:18]} 5. Nc3 {[%emt 0:00:07]} e6 {[%emt 0:00:11]} 6. Nh4 {[%emt 0:00:03]} Be4 {[%emt 0:00:11]} 7. f3 {[%emt 0:00:17]} Bg6 {[%emt 0:00:06]} 8. Qb3 {[%emt 0:00:19]} Qc7 {[%emt 0:00:06]} 9. Bd2 {[%emt 0:00:10] D12: Slav Defence: 3 Nf3 Nf6 4 e3 Bf5.} Be7 {[%emt 0:00:07]} 10. cxd5 {[%emt 0:00:41]} cxd5 {[%emt 0:07:46]} 11. Nxg6 {[%emt 0:00:09]} hxg6 {[%emt 0:00:07]} 12. O-O-O {[%emt 0:00:09]} Nc6 {[%emt 0:02:21]} 13. Kb1 {[%emt 0:00:27]} Rb8 {[%emt 0:07:29] [#]} 14. g4 $146 {[%emt 0:20:31]} ({Predecessor:} 14. Be1 a6 15. e4 Qd7 16. Bg3 Rc8 17. exd5 exd5 18. Be5 O-O 19. Bxf6 Bxf6 20. Nxd5 Nxd4 21. Nxf6+ gxf6 {0-1 (48) Miron,L (2482)-Georgiev,V (2575) Bar 2010}) 14... a6 {[%emt 0:02:28]} (14... Rxh2 $2 15. Nb5 Qg3 16. Be1 Qxe1 17. Rxh2 $18 (17. Rxe1 Rxh1 18. Nxa7 Rxf1 $16)) 15. h4 {[%emt 0:05:06]} Nd7 {[%emt 0:02:07]} ({Better is} 15... b5 $11) 16. Be1 {[%emt 0:02:56]} (16. f4 $5 {[%cal Rf4f5]}) 16... Nb6 {[%emt 0:16:33]} 17. e4 {[%emt 0:16:07][%cal Re4d5]} Rd8 {[%emt 0:03:04]} 18. e5 {[%emt 0:04:27]} Nc4 {The position is equal.} 19. Bxc4 {[%emt 0:00:30]} dxc4 20. Qxc4 {[%emt 0:00:30] [#] d5 is the strong threat.} b5 {Weighted Error Value: White=0.17 (very precise) /Black=0.15 (very precise)} 1/2-1/2

[Event "Paracin Open 2022"]
[Site "Paracin"]
[Date "2022.07.09"]
[Round "3.17"]
[White "Arjun Kalyan"]
[Black "Milosevic, Milos"]
[Result "1-0"]
[ECO "B52"]
[WhiteElo "2499"]
[BlackElo "2288"]
[Annotator "TA"]
[PlyCount "57"]
[EventDate "2022.07.08"]
[EventCountry "SRB"]
[SourceTitle "playchess.com"]
[Source "ChessBase"]
[SourceQuality "1"]
[TimeControl "5400+30"]

{[%evp 9,57,0,33,22,28,27,30,20,13,0,0,0,25,6,35,36,41,52,46,20,14,20,25,18,137,93,301,286,529,503,504,475,786,420,384,399,372,308,829,778,770,759,775,661,1190,775,2329,1778,1555,1342]} 1. e4 {[%emt 0:00:01]} c5 {[%emt 0:10:12]} 2. Nf3 {[%emt 0:00:06]} d6 {[%emt 0:00:14]} 3. Bb5+ {[%emt 0:00:09]} Bd7 {[%emt 0:00:08]} 4. c4 {[%emt 0:00:10]} Nf6 {[%emt 0:00:19]} 5. Nc3 {[%emt 0:00:14]} g6 {[%emt 0:00:15]} 6. Bxd7+ {[%emt 0:01:14] B52: Sicilian: Moscow Variation with 3...Bd7.} Qxd7 {[%emt 0:00:20]} 7. d4 {[%emt 0:00:25]} cxd4 {[%emt 0:00:06]} 8. Qxd4 {[%emt 0:00:26] White has an edge.} Bg7 {[%emt 0:00:32]} 9. Bg5 {[%emt 0:01:09]} Nc6 {[%emt 0:00:15]} 10. Qd2 {[%emt 0:04:15]} O-O {[%emt 0:02:33]} 11. O-O {[%emt 0:00:08] [#]} Rfc8 $146 {[%emt 0:04:33]} ({Predecessor:} 11... Rac8 12. b3 a6 13. Bh6 b5 14. Bxg7 Kxg7 15. cxb5 axb5 16. e5 dxe5 17. Qxd7 Nxd7 18. Nxb5 {0-1 (37) Najdin,D (2285)-Bok,B (2624) Chess.com INT 2021}) 12. b3 {[%emt 0:06:05][%cal Bb2b3,Bb3b4,Bb4b5][%mdl 32]} a6 {[%emt 0:03:20][%cal Ob7b5]} 13. Rad1 {[%emt 0:12:27][%cal Oe4e5]} Qd8 {[%emt 0:04:02]} 14. Bxf6 {[%emt 0:02:14]} Bxf6 {[%emt 0:00:13]} 15. Nd5 {[%emt 0:00:25]} Bg7 {[%emt 0:00:10]} 16. Qe3 {[%emt 0:02:44]} Qa5 {[%emt 0:06:25] Inhibits c5.} (16... Rab8 $11) 17. b4 {[%emt 0:08:32] White is more active.} Qxa2 {[%emt 0:00:07] [#] Black cannot hold the game after this.} (17... Qd8 $16) 18. b5 $1 $18 {[%emt 0:03:44][%mdl 64] Deflection} Na5 {[%emt 0:00:04]} (18... axb5 {was necessary.} 19. cxb5 Ra7) 19. Nxe7+ {[%emt 0:01:18][%mdl 64] Discovered Attack, Double Attack. Pair of Knights!} Kf8 {[%emt 0:05:09]} 20. Nxc8 {[%emt 0:00:14]} Nxc4 {[%emt 0:00:03] [#]} (20... Rxc8 $142 21. Qb6 axb5 22. Qxd6+ Kg8 23. cxb5 Qc4) 21. Qf4 $1 {[%emt 0:03:26]} Rxc8 {[%emt 0:00:04]} 22. Ng5 {[%emt 0:01:10][%csl Gg5,LRf7,LRh7][%cal Rf4f7]} Ne5 {[%emt 0:00:29]} 23. Rxd6 {[%emt 0:01:30]} Ke7 {[%emt 0:02:19] Against Ne6} (23... Kg8 24. bxa6 bxa6) 24. Rd5 {[%emt 0:02:40] White is clearly winning.} f6 {[%emt 0:00:43]} 25. Nf3 {[%emt 0:00:57][%cal Rf3e5]} Nf7 {[%emt 0:00:25]} 26. Rfd1 {[%emt 0:01:17]} Qe2 {[%emt 0:01:06]} 27. e5 {[%emt 0:01:32] Hoping for exf6+.} Rc2 {[%emt 0:00:33]} 28. exf6+ {[%emt 0:00:19]} Bxf6 {[%emt 0:00:02]} 29. Re1 {[%emt 0:00:28] Weighted Error Value: White=0.38/Black=0.62} 1-0

[Event "Paracin Open 2022"]
[Site "Paracin"]
[Date "2022.07.09"]
[Round "3.18"]
[White "Ristic, Nenad"]
[Black "Song, Raymond"]
[Result "1/2-1/2"]
[ECO "B52"]
[WhiteElo "2293"]
[BlackElo "2499"]
[Annotator "TA"]
[PlyCount "25"]
[EventDate "2022.07.08"]
[EventCountry "SRB"]
[SourceTitle "playchess.com"]
[Source "ChessBase"]
[SourceQuality "1"]
[TimeControl "5400+30"]

{[%evp 16,25,8,5,4,8,21,24,19,17,54,22]} 1. e4 {[%emt 0:00:01]} c5 {[%emt 0:00:07]} 2. Nf3 {[%emt 0:00:16]} d6 {[%emt 0:00:04]} 3. Bb5+ {[%emt 0:00:10]} Bd7 {[%emt 0:00:05]} 4. Bxd7+ {[%emt 0:00:09]} Nxd7 {[%emt 0:00:05]} 5. O-O {[%emt 0:00:11]} Ngf6 {[%emt 0:00:06][%cal Bg8f6,Bf6e8,Be8d6][%mdl 32]} 6. Re1 {[%emt 0:02:03]} e6 {[%emt 0:00:09]} 7. c3 {[%emt 0:00:19]} Be7 {[%emt 0:00:06]} 8. d4 {[%emt 0:00:11]} O-O $1 {[%emt 0:00:06][%mdl 4] is now more promising than 8...cxd4.} 9. e5 {[%emt 0:01:07]} Ne8 {[%emt 0:01:53] B52: Sicilian: Moscow Variation with 3...Bd7.} 10. exd6 {[%emt 0:01:48]} Nxd6 {[%emt 0:01:01]} 11. d5 {[%emt 0:16:20]} exd5 {[%emt 0:00:59]} 12. Qxd5 {[%emt 1:13:55] [#]} Nf6 $146 {[%emt 0:21:21]} ({Predecessor:} 12... b6 13. Bg5 Bxg5 14. Qxd6 Bf6 15. Kf1 Re8 16. Na3 Ne5 17. Qxd8 Raxd8 18. Nxe5 Rxe5 {½-½ (64) Grischuk,A (2777)-Bjerre,J (2549) Chess.com INT 2020}) 13. Qb3 {[%emt 0:00:00] Black got outplayed after the opening.  Weighted Error Value: White=0.01 (flawless) /Black=0.12 (very precise)} 1/2-1/2

[Event "Paracin Open 2022"]
[Site "Paracin"]
[Date "2022.07.09"]
[Round "3.19"]
[White "Nitish Belurkar"]
[Black "Zemlyanskii, Ivan"]
[Result "1/2-1/2"]
[ECO "B92"]
[WhiteElo "2460"]
[BlackElo "2269"]
[Annotator "RC"]
[PlyCount "80"]
[EventDate "2022.07.08"]
[EventCountry "SRB"]
[SourceTitle "playchess.com"]
[Source "ChessBase"]
[SourceQuality "1"]
[TimeControl "5400+30"]

1. e4 {[%emt 0:00:02]} c5 {[%emt 0:00:08]} 2. Nf3 {[%emt 0:00:07]} d6 {[%emt 0:00:10]} 3. d4 {[%emt 0:00:13]} Nf6 {[%emt 0:00:22]} 4. Nc3 {[%emt 0:00:50]} cxd4 {[%emt 0:00:06]} 5. Nxd4 {[%emt 0:00:05]} a6 {[%emt 0:00:05]} 6. Be2 {[%emt 0:00:34]} e5 {[%emt 0:00:08]} 7. Nb3 {[%emt 0:00:04]} Be7 {[%emt 0:00:31]} 8. O-O {[%emt 0:00:08]} O-O {[%emt 0:00:28]} 9. Re1 {[%emt 0:00:23]} Be6 {[%emt 0:00:38]} 10. Bf3 {[%emt 0:00:56]} Nbd7 {[%emt 0:01:08]} 11. a4 {[%emt 0:00:38]} b6 {[%emt 0:10:56]} 12. Be3 {[%emt 0:02:06]} Qc7 {[%emt 0:00:31]} 13. Nc1 {[%emt 0:06:15]} Rfc8 {[%emt 0:11:09]} 14. h3 {[%emt 0:03:33]} Qb7 {[%emt 0:06:31]} 15. Nd3 {[%emt 0:06:58]} Rc4 {[%emt 0:06:57]} 16. Nc1 {[%emt 0:15:50]} Rac8 {[%emt 0:02:07]} 17. Nb3 {[%emt 0:04:58]} h6 {[%emt 0:05:09]} 18. Re2 {[%emt 0:06:30]} Nf8 {[%emt 0:01:58]} 19. Rd2 {[%emt 0:02:51]} Ng6 {[%emt 0:10:19]} 20. Nd5 {[%emt 0:04:19]} Nxd5 {[%emt 0:01:57]} 21. exd5 {[%emt 0:00:14]} Bd7 {[%emt 0:00:10]} 22. a5 {[%emt 0:02:57]} b5 {[%emt 0:00:45]} 23. Be2 {[%emt 0:01:17]} Ra4 {[%emt 0:01:56]} 24. c3 {[%emt 0:01:24]} Rxa1 {[%emt 0:01:19]} 25. Qxa1 {[%emt 0:00:50]} f5 {[%emt 0:01:49]} 26. f3 {[%emt 0:01:56]} f4 {[%emt 0:04:33]} 27. Bf2 {[%emt 0:00:01]} Nh4 {[%emt 0:01:40]} 28. Nc1 {[%emt 0:02:28]} Nf5 {[%emt 0:01:45]} 29. Na2 {[%emt 0:00:49]} Ne3 {[%emt 0:03:04]} 30. Nb4 {[%emt 0:03:01]} Nc4 {[%emt 0:01:54]} 31. Bxc4 {[%emt 0:01:05]} Rxc4 {[%emt 0:00:29]} 32. Bb6 {[%emt 0:01:06]} Bf6 {[%emt 0:01:20]} 33. Qb1 {[%emt 0:02:46]} Qc8 {[%emt 0:00:52]} 34. Re2 {[%emt 0:01:38]} Bf5 {[%emt 0:04:26]} 35. Qe1 {[%emt 0:00:14]} Bd7 {[%emt 0:04:12]} 36. Re4 {[%emt 0:01:20]} Rxe4 {[%emt 0:01:48]} 37. Qxe4 {[%emt 0:00:07]} Bf5 {[%emt 0:00:48]} 38. Qe2 {[%emt 0:01:15]} Bd7 {[%emt 0:02:15]} 39. Qe4 {[%emt 0:02:39]} Bf5 {[%emt 0:03:13]} 40. Qe2 {[%emt 0:00:15]} Bd7 {[%emt 0:01:37]} 1/2-1/2

[Event "Paracin Open 2022"]
[Site "Paracin"]
[Date "2022.07.09"]
[Round "3.20"]
[White "Tsaknakis, Zisis"]
[Black "Zajic, Milan"]
[Result "1/2-1/2"]
[ECO "B33"]
[WhiteElo "2266"]
[BlackElo "2431"]
[Annotator "RC"]
[PlyCount "80"]
[EventDate "2022.07.08"]
[EventCountry "SRB"]
[SourceTitle "playchess.com"]
[Source "ChessBase"]
[SourceQuality "1"]
[TimeControl "5400+30"]

1. e4 {[%emt 0:02:22]} c5 {[%emt 0:00:04]} 2. Nf3 {[%emt 0:00:04]} Nc6 {[%emt 0:00:08]} 3. d4 {[%emt 0:00:12]} cxd4 {[%emt 0:00:05]} 4. Nxd4 {[%emt 0:00:04]} Nf6 {[%emt 0:00:04]} 5. Nc3 {[%emt 0:00:05]} e5 {[%emt 0:00:03]} 6. Ndb5 {[%emt 0:00:04]} d6 {[%emt 0:00:05]} 7. Bg5 {[%emt 0:00:09]} a6 {[%emt 0:00:04]} 8. Na3 {[%emt 0:00:03]} b5 {[%emt 0:00:05]} 9. Nd5 {[%emt 0:00:04]} Be7 {[%emt 0:00:04]} 10. Bxf6 {[%emt 0:00:04]} Bxf6 {[%emt 0:00:04]} 11. c3 {[%emt 0:00:05]} Rb8 {[%emt 0:00:08]} 12. Nc2 {[%emt 0:00:10]} Bg5 {[%emt 0:00:04]} 13. Be2 {[%emt 0:01:55]} O-O {[%emt 0:01:10]} 14. O-O {[%emt 0:00:08]} g6 {[%emt 0:19:03]} 15. b4 {[%emt 0:01:42]} Ne7 {[%emt 0:01:43]} 16. Nce3 {[%emt 0:15:21]} Be6 {[%emt 0:12:02]} 17. a4 {[%emt 0:06:42]} Bxe3 {[%emt 0:06:10]} 18. Nxe3 {[%emt 0:02:25]} Qc7 {[%emt 0:04:06]} 19. axb5 {[%emt 0:17:55]} axb5 {[%emt 0:00:37]} 20. Qd3 {[%emt 0:00:16]} Rfd8 {[%emt 0:04:12]} 21. Ra5 {[%emt 0:06:02]} Bd7 {[%emt 0:14:23]} 22. Rc1 {[%emt 0:06:41]} Bc6 {[%emt 0:02:16]} 23. Bf3 {[%emt 0:07:54]} Rb7 {[%emt 0:03:38]} 24. h4 {[%emt 0:02:06]} h5 {[%emt 0:01:15]} 25. Rd1 {[%emt 0:04:22]} Kg7 {[%emt 0:00:27]} 26. Qd2 {[%emt 0:04:22]} Ng8 {[%emt 0:04:31]} 27. c4 {[%emt 0:01:39]} bxc4 {[%emt 0:02:47]} 28. Nxc4 {[%emt 0:00:03]} Rbb8 {[%emt 0:01:13]} 29. Nxd6 {[%emt 0:02:38]} Qe7 {[%emt 0:01:34]} 30. Ra3 {[%emt 0:07:09]} Bb5 {[%emt 0:03:54]} 31. Ra5 {[%emt 0:01:48]} Bc4 {[%emt 0:08:51]} 32. Qc3 {[%emt 0:05:10]} Rxd6 {[%emt 0:01:08]} 33. Rxd6 {[%emt 0:00:22]} Qxd6 {[%emt 0:00:08]} 34. Qxc4 {[%emt 0:00:15]} Rxb4 {[%emt 0:00:25]} 35. Qc5 {[%emt 0:02:51]} Rb1+ {[%emt 0:02:42]} 36. Kh2 {[%emt 0:00:04]} Qxc5 {[%emt 0:01:52]} 37. Rxc5 {[%emt 0:00:01]} Rb2 {[%emt 0:00:13]} 38. Kg3 {[%emt 0:01:11]} Kf6 {[%emt 0:01:25]} 39. Rc6+ {[%emt 0:00:01]} Kg7 {[%emt 0:00:39]} 40. Rc5 {[%emt 0:00:19]} Kf6 {[%emt 0:00:44]} 1/2-1/2

[Event "Paracin Open 2022"]
[Site "Paracin"]
[Date "2022.07.11"]
[Round "4.1"]
[White "Neelash Saha"]
[Black "Predke, Alexandr"]
[Result "1/2-1/2"]
[ECO "E11"]
[WhiteElo "2446"]
[BlackElo "2688"]
[Annotator "ChessBase"]
[PlyCount "114"]
[EventDate "2022.07.08"]
[EventCountry "SRB"]
[SourceTitle "playchess.com"]
[Source "ChessBase"]
[SourceQuality "1"]
[TimeControl "5400+30"]

1. d4 {[%emt 0:04:39]} Nf6 {[%emt 0:01:21]} 2. c4 {[%emt 0:00:05]} e6 {[%emt 0:00:05]} 3. g3 {[%emt 0:00:05]} d5 {[%emt 0:00:28]} 4. Nf3 {[%emt 0:01:10]} Bb4+ {[%emt 0:00:11]} 5. Bd2 {[%emt 0:00:37]} Be7 {[%emt 0:00:06]} 6. Bg2 {[%emt 0:00:34]} c6 {[%emt 0:00:35]} 7. O-O {[%emt 0:01:25]} O-O {[%emt 0:00:04]} 8. Qc2 {[%emt 0:00:48]} b6 {[%emt 0:01:03]} 9. Rd1 {[%emt 0:02:10]} Bb7 {[%emt 0:01:38]} 10. a4 {[%emt 0:02:31]} a5 {[%emt 0:02:15]} 11. cxd5 {[%emt 0:00:28]} cxd5 {[%emt 0:09:14]} 12. Na3 {[%emt 0:00:05]} Nc6 {[%emt 0:01:07]} 13. Nb5 {[%emt 0:00:49]} Rc8 {[%emt 0:02:03]} 14. Qb3 {[%emt 0:00:05]} Ne4 {[%emt 0:01:11]} 15. Be1 {[%emt 0:00:05]} Nd6 {[%emt 0:06:27]} 16. e3 {[%emt 0:00:59]} Nxb5 {[%emt 0:06:12]} 17. axb5 {[%emt 0:01:53]} Nb4 {[%emt 0:00:13]} 18. Rdc1 {[%emt 0:06:31]} Qe8 {[%emt 0:05:27]} 19. Rxc8 {[%emt 0:04:49]} Bxc8 {[%emt 0:01:21]} 20. Bxb4 {[%emt 0:00:09]} Bxb4 {[%emt 0:00:19]} 21. Ne5 {[%emt 0:00:05]} Bd7 {[%emt 0:02:52]} 22. Nxd7 {[%emt 0:00:25]} Qxd7 {[%emt 0:00:02]} 23. Bf1 {[%emt 0:00:06]} Rc8 {[%emt 0:00:10]} 24. Qd1 {[%emt 0:00:08]} Qc7 {[%emt 0:00:54]} 25. Bd3 {[%emt 0:00:32]} g6 {[%emt 0:00:24]} 26. Kg2 {[%emt 0:02:09]} e5 {[%emt 0:04:08]} 27. dxe5 {[%emt 0:00:41]} Qxe5 {[%emt 0:01:50]} 28. Rc1 {[%emt 0:00:06]} Bc5 {[%emt 0:00:07]} 29. Rc2 {[%emt 0:03:17]} Rd8 {[%emt 0:01:28]} 30. Qf3 {[%emt 0:00:13]} Kg7 {[%emt 0:00:28]} 31. Rd2 {[%emt 0:04:08]} Rd6 {[%emt 0:01:54]} 32. Bb1 {[%emt 0:02:20]} d4 {[%emt 0:04:08]} 33. exd4 {[%emt 0:00:09]} Bxd4 {[%emt 0:00:28]} 34. Qf4 {[%emt 0:07:16]} Qxf4 {[%emt 0:10:26]} 35. gxf4 {[%emt 0:00:07]} f5 {[%emt 0:00:50]} 36. Kf3 {[%emt 0:01:26]} Kf6 {[%emt 0:01:32]} 37. Ba2 {[%emt 0:00:51]} Ke7 {[%emt 0:00:59]} 38. Bg8 {[%emt 0:02:26]} a4 {[%emt 0:01:31]} 39. Bc4 {[%emt 0:10:00]} Bc5 {[%emt 0:13:09]} 40. Rxd6 {[%emt 0:01:54]} Kxd6 {[%emt 0:00:04]} 41. Be2 {[%emt 0:00:08]} Bd4 {[%emt 0:00:03]} 42. Bd1 {[%emt 0:00:03]} Kc5 {[%emt 0:00:02]} 43. Bxa4 {[%emt 0:00:06]} Kc4 {[%emt 0:00:48]} 44. Bd1 {[%emt 0:00:17]} Bxb2 {[%emt 0:00:05]} 45. Be2+ {[%emt 0:00:05]} Kd4 {[%emt 0:00:06]} 46. h3 {[%emt 0:00:26]} Ba3 {[%emt 0:01:05]} 47. Bf1 {[%emt 0:00:26]} Be7 {[%emt 0:00:05]} 48. Be2 {[%emt 0:00:51]} Kc3 {[%emt 0:00:34]} 49. Bf1 {[%emt 0:00:06]} h6 {[%emt 0:00:06]} 50. Be2 {[%emt 0:00:16]} Bc5 {[%emt 0:00:17]} 51. Bf1 {[%emt 0:00:27]} Be7 {[%emt 0:00:05]} 52. Be2 {[%emt 0:00:04]} Bh4 {[%emt 0:00:02]} 53. Bf1 {[%emt 0:00:41]} Bf6 {[%emt 0:00:25]} 54. Be2 {[%emt 0:00:11]} Bd4 {[%emt 0:00:02]} 55. Bf1 {[%emt 0:00:14]} g5 {[%emt 0:00:01]} 56. fxg5 {[%emt 0:00:06]} hxg5 {[%emt 0:00:02]} 57. Be2 {[%emt 0:00:09]} Kd2 {[%emt 0:00:26]} 1/2-1/2